fUST/lending_fUST_20240518
["ID","MTS","AMOUNT","RATE_DAILY","PERIOD"]
[327402415,1716043841023,-586.61,0.00010959,2]
[327402417,1716043841034,-915.9,0.00010959,2]
[327402419,1716043841044,-763.25,0.00010959,2]
[327402421,1716043841053,-636.04,0.00010959,2]
[327402423,1716043841063,-823.27427064,0.0001223,2]
[327402425,1716043841072,-1893.20866413,0.000125,2]
[327402427,1716043841081,-4283.18468911,0.000129,2]
[327402429,1716043841090,-2782.409637,0.00013699,2]
[327402431,1716043841099,-3000.0,0.00013699,2]
[327402433,1716043841109,-216.2891354,0.00013699,2]
[327402435,1716043841120,-7117.4473757,0.00013699,2]
[327402437,1716043841129,-283.58690319,0.000137,2]
[327402439,1716043841139,-920.93404353,0.00014,2]
[327402441,1716043841148,-823.27427064,0.00014284,2]
[327402443,1716043841158,-309.4430026,0.0001487,2]
[327402445,1716043841167,-1417.81923321,0.00014881,2]
[327402447,1716043841176,-2107.5414282,0.00015,2]
[327402449,1716043841186,-942.53705457,0.00015,2]
[327402451,1716043841195,-1683.7621202,0.00015,2]
[327402453,1716043841205,-2795.92824354,0.00015,2]
[327402456,1716043841215,-3699.56949019,0.00015,2]
[327402457,1716043841224,-1149.07076386,0.00015,2]
[327402459,1716043841233,-2400.65057528,0.00015,2]
[327402462,1716043841243,-1716.62098532,0.00015031,2]
[327402463,1716043841252,-1403.073184,0.00015031,2]
[327402465,1716043841261,-236.48555321,0.00015031,2]
[327402467,1716043841270,-410.4004372,0.00015031,2]
[327402470,1716043841282,-4579.8151325,0.00015997,2]
[327402472,1716043841293,-7967.64444353,0.00016,2]
[327402474,1716043841302,-1199.336064,0.00016,2]
[327402475,1716043841311,-3095.46719057,0.00016,2]
[327402477,1716043841321,-831.61394571,0.00016,2]
[327402479,1716043841331,-38013.4585621,0.00016138,2]
[327402481,1716043841340,-2000.0,0.00016138,2]
[327402483,1716043841349,-453.5,0.00016284,3]
[327402485,1716043841359,-453.5,0.00016284,2]
[327402488,1716043841376,-150.0,0.00016284,3]
[327402490,1716043841391,-150.0,0.00016284,2]
[327402493,1716043841404,-823.27427064,0.00016338,2]
[327402495,1716043841415,-328.22139918,0.00016435,2]
[327402497,1716043841426,-189.36134515,0.00016436,2]
[327402499,1716043841439,-406.44110723,0.00016438,2]
[327402502,1716043841452,-500.0,0.00016438,2]
[327402504,1716043841465,-500.0,0.00016438,2]
[327402507,1716043841477,-500.0,0.00016438,2]
[327402509,1716043841490,-574.29341607,0.00016438,2]
[327402511,1716043841503,-500.0,0.00016438,2]
[327402514,1716043841514,-500.0,0.00016438,2]
[327402516,1716043841526,-500.0,0.00016438,2]
[327402518,1716043841537,-500.0,0.00016438,2]
[327402520,1716043841547,-500.0,0.00016438,2]
[327402523,1716043841559,-500.0,0.00016438,2]
[327402525,1716043841572,-500.0,0.00016438,2]
[327402527,1716043841584,-500.0,0.00016438,2]
[327402530,1716043841596,-500.0,0.00016438,2]
[327402532,1716043841608,-500.0,0.00016438,2]
[327402534,1716043841626,-500.0,0.00016438,2]
[327402535,1716043841639,-500.0,0.00016438,2]
[327402536,1716043841651,-500.0,0.00016438,2]
[327402538,1716043841663,-500.0,0.00016438,2]
[327402540,1716043841674,-500.0,0.00016438,2]
[327402542,1716043841688,-500.0,0.00016438,2]
[327402544,1716043841699,-500.0,0.00016438,2]
[327402547,1716043841711,-500.0,0.00016438,2]
[327402549,1716043841723,-500.0,0.00016438,2]
[327402551,1716043841735,-500.0,0.00016438,2]
[327402554,1716043841746,-500.0,0.00016438,2]
[327402556,1716043841759,-500.0,0.00016438,2]
[327402558,1716043841771,-500.0,0.00016438,2]
[327402561,1716043841784,-500.0,0.00016438,2]
[327402563,1716043841797,-500.0,0.00016438,2]
[327402565,1716043841808,-500.0,0.00016438,2]
[327402567,1716043841819,-302.92556354,0.00016438,2]
[327402570,1716043841830,-500.0,0.00016438,2]
[327402572,1716043841841,-500.0,0.00016438,2]
[327402574,1716043841854,-500.0,0.00016438,2]
[327402577,1716043841869,-500.0,0.00016438,2]
[327402579,1716043841880,-500.0,0.00016438,2]
[327402581,1716043841891,-277.39634117,0.00016438,2]
[327402583,1716043841900,-500.0,0.00016438,2]
[327402585,1716043841911,-892.61,0.00016438,2]
[327402588,1716043841925,-500.0,0.00016438,2]
[327402590,1716043841937,-500.0,0.00016438,2]
[327402592,1716043841948,-500.0,0.00016438,2]
[327402594,1716043841958,-500.0,0.00016438,2]
[327402596,1716043841968,-373.81248471,0.00016438,2]
[327402599,1716043841978,-500.0,0.00016438,2]
[327402601,1716043841990,-500.0,0.00016438,2]
[327402603,1716043842001,-500.0,0.00016438,2]
[327402605,1716043842011,-500.0,0.00016438,2]
[327402607,1716043842022,-500.0,0.00016438,2]
[327402609,1716043842033,-500.0,0.00016438,2]
[327402612,1716043842045,-500.0,0.00016438,2]
[327402614,1716043842056,-640.22,0.00016438,2]
[327402616,1716043842068,-500.0,0.00016438,2]
[327402618,1716043842079,-500.0,0.00016438,2]
[327402620,1716043842090,-500.0,0.00016438,2]
[327402623,1716043842102,-500.0,0.00016438,2]
[327402625,1716043842113,-500.0,0.00016438,2]
[327402627,1716043842124,-500.0,0.00016438,2]
[327402629,1716043842135,-500.0,0.00016438,2]
[327402631,1716043842145,-500.0,0.00016438,2]
[327402633,1716043842156,-500.0,0.00016438,2]
[327402635,1716043842167,-500.0,0.00016438,2]
[327402638,1716043842178,-500.0,0.00016438,2]
[327402640,1716043842189,-500.0,0.00016438,2]
[327402642,1716043842200,-500.0,0.00016438,2]
[327402644,1716043842211,-500.0,0.00016438,2]
[327402646,1716043842222,-500.0,0.00016438,2]
[327402649,1716043842233,-500.0,0.00016438,2]
[327402651,1716043842244,-500.0,0.00016438,2]
[327402653,1716043842254,-500.0,0.00016438,2]
[327402654,1716043842265,-500.0,0.00016438,2]
[327402655,1716043842276,-550.71018601,0.00016438,2]
[327402656,1716043842292,-500.0,0.00016438,2]
[327402657,1716043842302,-599.21,0.00016438,2]
[327402658,1716043842313,-500.0,0.00016438,2]
[327402659,1716043842324,-500.0,0.00016438,2]
[327402660,1716043842335,-500.0,0.00016438,2]
[327402661,1716043842346,-500.0,0.00016438,2]
[327402662,1716043842358,-500.0,0.00016438,2]
[327402663,1716043842376,-500.0,0.00016438,2]
[327402665,1716043842386,-500.0,0.00016438,2]
[327402667,1716043842397,-500.0,0.00016438,2]
[327402669,1716043842408,-500.0,0.00016438,2]
[327402671,1716043842421,-500.0,0.00016438,2]
[327402673,1716043842432,-500.0,0.00016438,2]
[327402676,1716043842444,-500.0,0.00016438,2]
[327402678,1716043842456,-518.59,0.00016438,2]
[327402680,1716043842467,-500.0,0.00016438,2]
[327402682,1716043842478,-500.0,0.00016438,2]
[327402684,1716043842489,-500.0,0.00016438,2]
[327402686,1716043842500,-500.0,0.00016438,2]
[327402689,1716043842512,-500.0,0.00016438,2]
[327402691,1716043842523,-500.0,0.00016438,2]
[327402693,1716043842534,-500.0,0.00016438,2]
[327402695,1716043842545,-514.11563399,0.00016438,2]
[327402697,1716043842556,-500.0,0.00016438,2]
[327402700,1716043842568,-500.0,0.00016438,2]
[327402717,1716043842718,-500.0,0.00016438,2]
[327402719,1716043842729,-500.0,0.00016438,2]
[327402721,1716043842738,-500.0,0.00016438,2]
[327402723,1716043842748,-500.0,0.00016438,2]
[327402725,1716043842757,-500.0,0.00016438,2]
[327402727,1716043842766,-500.0,0.00016438,2]
[327402729,1716043842775,-500.0,0.00016438,2]
[327402731,1716043842785,-553.15,0.00016438,2]
[327402733,1716043842794,-500.0,0.00016438,2]
[327402735,1716043842803,-583.06,0.00016438,2]
[327402737,1716043842812,-500.0,0.00016438,2]
[327402739,1716043842821,-500.0,0.00016438,2]
[327402741,1716043842832,-500.0,0.00016438,2]
[327402743,1716043842841,-500.0,0.00016438,2]
[327402746,1716043842850,-500.0,0.00016438,2]
[327402749,1716043842859,-500.0,0.00016438,2]
[327402752,1716043842872,-500.0,0.00016438,2]
[327402755,1716043842880,-309.00062595,0.00016438,2]
[327402758,1716043842889,-500.0,0.00016438,2]
[327402761,1716043842898,-516.31,0.00016438,2]
[327402764,1716043842907,-510.84,0.00016438,2]
[327402765,1716043842916,-500.0,0.00016438,2]
[327402766,1716043842925,-618.74,0.00016438,2]
[327402767,1716043842935,-500.0,0.00016438,2]
[327402768,1716043842944,-500.0,0.00016438,2]
[327402769,1716043842954,-500.0,0.00016438,2]
[327402770,1716043842963,-500.0,0.00016438,2]
[327402771,1716043842972,-500.0,0.00016438,2]
[327402772,1716043842982,-500.0,0.00016438,2]
[327402774,1716043842992,-190.15230657,0.00016438,2]
[327402776,1716043843000,-500.0,0.00016438,2]
[327402778,1716043843011,-500.0,0.00016438,2]
[327402780,1716043843020,-500.0,0.00016438,2]
[327402782,1716043843029,-587.94,0.00016438,2]
[327402784,1716043843039,-500.0,0.00016438,2]
[327402786,1716043843048,-500.0,0.00016438,2]
[327402788,1716043843056,-981.11,0.00016438,2]
[327402790,1716043843066,-500.0,0.00016438,2]
[327402792,1716043843076,-500.0,0.00016438,2]
[327402794,1716043843084,-437.08324013,0.00016438,2]
[327402796,1716043843094,-500.0,0.00016438,2]
[327402798,1716043843103,-500.0,0.00016438,2]
[327402800,1716043843112,-500.0,0.00016438,2]
[327402802,1716043843122,-500.0,0.00016438,2]
[327402804,1716043843131,-500.0,0.00016438,2]
[327402806,1716043843141,-500.0,0.00016438,2]
[327402808,1716043843150,-1076.96,0.00016438,2]
[327402810,1716043843160,-500.0,0.00016438,2]
[327402812,1716043843169,-680.35,0.00016438,2]
[327402814,1716043843178,-500.0,0.00016438,2]
[327402815,1716043843187,-500.0,0.00016438,2]
[327402817,1716043843196,-500.0,0.00016438,2]
[327402819,1716043843205,-500.0,0.00016438,2]
[327402822,1716043843214,-568.14,0.00016438,2]
[327402824,1716043843224,-581.99,0.00016438,2]
[327402826,1716043843233,-500.0,0.00016438,2]
[327402827,1716043843242,-500.0,0.00016438,2]
[327402829,1716043843251,-500.0,0.00016438,2]
[327402831,1716043843260,-500.0,0.00016438,2]
[327402833,1716043843269,-500.0,0.00016438,2]
[327402835,1716043843280,-1152.79,0.00016438,2]
[327402838,1716043843292,-140.42004023,0.00016438,2]
[327402851,1716043843417,-359.57995977,0.00016438,2]
[327402853,1716043843426,-500.0,0.00016438,2]
[327402855,1716043843436,-500.0,0.00016438,2]
[327402857,1716043843444,-500.0,0.00016438,2]
[327402859,1716043843453,-500.0,0.00016438,2]
[327402861,1716043843462,-500.0,0.00016438,2]
[327402863,1716043843471,-500.0,0.00016438,2]
[327402865,1716043843481,-500.0,0.00016438,2]
[327402867,1716043843490,-637.6,0.00016438,2]
[327402869,1716043843499,-500.0,0.00016438,2]
[327402870,1716043843508,-500.0,0.00016438,2]
[327402872,1716043843517,-500.0,0.00016438,2]
[327402875,1716043843527,-378.7310477,0.00016438,2]
[327402876,1716043843536,-500.0,0.00016438,2]
[327402878,1716043843545,-405.46728214,0.00016438,2]
[327402880,1716043843555,-500.0,0.00016438,2]
[327402882,1716043843564,-500.0,0.00016438,2]
[327402884,1716043843573,-500.0,0.00016438,2]
[327402886,1716043843583,-500.0,0.00016438,2]
[327402888,1716043843592,-500.0,0.00016438,2]
[327402890,1716043843602,-500.0,0.00016438,2]
[327402892,1716043843611,-500.0,0.00016438,2]
[327402895,1716043843623,-500.0,0.00016438,2]
[327402897,1716043843633,-500.0,0.00016438,2]
[327402899,1716043843642,-674.11,0.00016438,2]
[327402901,1716043843652,-527.73365276,0.00016438,2]
[327402903,1716043843661,-539.61714816,0.00016438,2]
[327402904,1716043843670,-516.31652946,0.00016438,2]
[327402906,1716043843679,-500.0,0.00016438,2]
[327402908,1716043843688,-500.0,0.00016438,2]
[327402910,1716043843697,-500.0,0.00016438,2]
[327402912,1716043843706,-500.0,0.00016438,2]
[327402914,1716043843715,-500.0,0.00016438,2]
[327402916,1716043843724,-500.0,0.00016438,2]
[327402918,1716043843733,-500.0,0.00016438,2]
[327402920,1716043843742,-500.0,0.00016438,2]
[327402922,1716043843752,-500.0,0.00016438,2]
[327402924,1716043843761,-500.0,0.00016438,2]
[327402926,1716043843770,-500.0,0.00016438,2]
[327402928,1716043843779,-500.0,0.00016438,2]
[327402930,1716043843789,-500.0,0.00016438,2]
[327402932,1716043843798,-500.0,0.00016438,2]
[327402934,1716043843807,-500.0,0.00016438,2]
[327402936,1716043843817,-500.0,0.00016438,2]
[327402938,1716043843826,-830.76,0.00016438,2]
[327402940,1716043843835,-500.0,0.00016438,2]
[327402942,1716043843844,-500.0,0.00016438,2]
[327402944,1716043843853,-500.0,0.00016438,2]
[327402946,1716043843863,-500.0,0.00016438,2]
[327402948,1716043843874,-500.0,0.00016438,2]
[327402950,1716043843883,-500.0,0.00016438,2]
[327402951,1716043843892,-500.0,0.00016438,2]
[327402953,1716043843902,-500.0,0.00016438,2]
[327402955,1716043843911,-348.80451072,0.00016438,2]
[327402957,1716043843920,-558.55,0.00016438,2]
[327402959,1716043843930,-756.15,0.00016438,2]
[327402961,1716043843939,-500.0,0.00016438,2]
[327402963,1716043843948,-500.0,0.00016438,2]
[327402965,1716043843957,-500.0,0.00016438,2]
[327402967,1716043843967,-500.0,0.00016438,2]
[327402969,1716043843977,-500.0,0.00016438,2]
[327402971,1716043843986,-506.57,0.00016438,2]
[327402973,1716043843995,-500.0,0.00016438,2]
[327402975,1716043844004,-936.88,0.00016438,2]
[327402977,1716043844014,-624.43,0.00016438,2]
[327402979,1716043844023,-500.0,0.00016438,2]
[327402981,1716043844032,-500.0,0.00016438,2]
[327402983,1716043844042,-947.22,0.00016438,2]
[327402985,1716043844051,-500.0,0.00016438,2]
[327402987,1716043844061,-500.0,0.00016438,2]
[327402989,1716043844070,-500.0,0.00016438,2]
[327402991,1716043844080,-500.0,0.00016438,2]
[327402993,1716043844089,-500.0,0.00016438,2]
[327402995,1716043844098,-538.11,0.00016438,2]
[327402997,1716043844107,-712.37,0.00016438,2]
[327402999,1716043844118,-2379.06,0.00016438,2]
[327403001,1716043844128,-500.0,0.00016438,2]
[327403003,1716043844137,-500.0,0.00016438,2]
[327403005,1716043844147,-2394.82,0.00016438,2]
[327403007,1716043844157,-500.0,0.00016438,2]
[327403009,1716043844166,-1901.78,0.00016438,2]
[327403011,1716043844176,-500.0,0.00016438,2]
[327403013,1716043844185,-500.0,0.00016438,2]
[327403015,1716043844194,-500.0,0.00016438,2]
[327403017,1716043844203,-500.0,0.00016438,2]
[327403019,1716043844213,-500.0,0.00016438,2]
[327403021,1716043844222,-500.0,0.00016438,2]
[327403023,1716043844232,-1099.58,0.00016438,2]
[327403025,1716043844241,-500.0,0.00016438,2]
[327403027,1716043844250,-500.0,0.00016438,2]
[327403029,1716043844259,-500.0,0.00016438,2]
[327403030,1716043844268,-317.23,0.00016438,2]
[327403032,1716043844278,-739.28,0.00016438,2]
[327403034,1716043844291,-500.0,0.00016438,2]
[327403036,1716043844301,-500.0,0.00016438,2]
[327403038,1716043844310,-597.48,0.00016438,2]
[327403040,1716043844319,-523.23786586,0.00016438,2]
[327403042,1716043844329,-500.0,0.00016438,2]
[327403045,1716043844339,-500.0,0.00016438,2]
[327403046,1716043844349,-746.58,0.00016438,2]
[327403048,1716043844358,-500.0,0.00016438,2]
[327403050,1716043844370,-500.0,0.00016438,2]
[327403052,1716043844380,-500.0,0.00016438,2]
[327403054,1716043844388,-500.0,0.00016438,2]
[327403056,1716043844397,-500.0,0.00016438,2]
[327403058,1716043844407,-1268.35,0.00016438,2]
[327403060,1716043844417,-735.33,0.00016438,2]
[327403062,1716043844426,-500.0,0.00016438,2]
[327403064,1716043844435,-500.0,0.00016438,2]
[327403066,1716043844445,-500.0,0.00016438,2]
[327403068,1716043844454,-500.0,0.00016438,2]
[327403070,1716043844464,-4525.82,0.00016438,2]
[327403072,1716043844473,-500.0,0.00016438,2]
[327403074,1716043844483,-500.0,0.00016438,2]
[327403076,1716043844492,-17654.65,0.00016438,2]
[327403078,1716043844501,-514.16,0.00016438,2]
[327403080,1716043844512,-1853.16,0.00016438,2]
[327403082,1716043844522,-500.0,0.00016438,2]
[327403084,1716043844531,-932.19,0.00016438,2]
[327403086,1716043844541,-728.05,0.00016438,2]
[327403088,1716043844551,-500.0,0.00016438,2]
[327403090,1716043844560,-500.0,0.00016438,2]
[327403092,1716043844569,-500.0,0.00016438,2]
[327403094,1716043844579,-500.0,0.00016438,2]
[327403096,1716043844588,-500.0,0.00016438,2]
[327403098,1716043844597,-2282.51,0.00016438,2]
[327403100,1716043844607,-760.28,0.00016438,2]
[327403102,1716043844618,-500.0,0.00016438,2]
[327403104,1716043844627,-500.0,0.00016438,2]
[327403108,1716043844636,-513.93179393,0.00016438,2]
[327403114,1716043844646,-500.0,0.00016438,2]
[327403120,1716043844655,-500.0,0.00016438,2]
[327403128,1716043844664,-500.0,0.00016438,2]
[327403134,1716043844674,-500.0,0.00016438,2]
[327403162,1716043844780,-500.0,0.00016438,2]
[327403165,1716043844791,-655.83,0.00016438,2]
[327403168,1716043844801,-834.72,0.00016438,2]
[327403171,1716043844810,-500.0,0.00016438,2]
[327403173,1716043844819,-500.0,0.00016438,2]
[327403176,1716043844828,-500.0,0.00016438,2]
[327403179,1716043844838,-500.0,0.00016438,2]
[327403182,1716043844847,-3541.24,0.00016438,2]
[327403185,1716043844856,-500.0,0.00016438,2]
[327403188,1716043844867,-550.55917967,0.00016438,2]
[327403191,1716043844877,-500.0,0.00016438,2]
[327403194,1716043844887,-500.0,0.00016438,2]
[327403197,1716043844896,-400.0,0.00016438,7]
[327403199,1716043844906,-1084.51096583,0.000165,2]
[327403201,1716043844916,-1084.51096583,0.000165,2]
[327403203,1716043844925,-1084.51096583,0.000165,2]
[327403206,1716043844934,-417.06273246,0.00016591,2]
[327403209,1716043844943,-4222.10020806,0.00016607,2]
[327403212,1716043844953,-153.0,0.00016652,2]
[327403215,1716043844962,-12275.47519178,0.00016709,2]
[327403262,1716043845348,-658.15339953,8.201e-05,2]
[327403264,1716043845359,-154.82968734,8.204e-05,2]
[327403266,1716043845370,-1496.37630434,8.204e-05,2]
[327403268,1716043845380,-7233.65719723,0.00016709,2]
[327403270,1716043845390,-1101.24786691,0.00016712,2]
[327403272,1716043845399,-154.81422293,0.00016712,2]
[327403274,1716043845409,-285.71224732,0.00016712,2]
[327403276,1716043845418,-14332.20492863,0.00016712,2]
[327403278,1716043845427,-500.0,0.00016712,2]
[327403279,1716043845436,-500.0,0.00016712,2]
[327403281,1716043845446,-500.0,0.00016712,2]
[327403283,1716043845456,-227.31862131,0.00016712,2]
[327403285,1716043845465,-500.0,0.00016712,2]
[327403287,1716043845475,-500.0,0.00016712,2]
[327403289,1716043845484,-500.0,0.00016712,2]
[327403291,1716043845493,-500.0,0.00016712,2]
[327403292,1716043845502,-500.0,0.00016712,2]
[327403293,1716043845512,-500.0,0.00016712,2]
[327403294,1716043845521,-500.0,0.00016712,2]
[327403295,1716043845530,-500.0,0.00016712,2]
[327403296,1716043845539,-500.0,0.00016712,2]
[327403297,1716043845549,-500.0,0.00016712,2]
[327403298,1716043845559,-500.0,0.00016712,2]
[327403299,1716043845569,-500.0,0.00016712,2]
[327403300,1716043845579,-500.0,0.00016712,2]
[327403301,1716043845589,-500.0,0.00016712,2]
[327403302,1716043845599,-500.0,0.00016712,2]
[327403303,1716043845608,-500.0,0.00016712,2]
[327403304,1716043845619,-500.0,0.00016712,2]
[327403305,1716043845628,-500.0,0.00016712,2]
[327403306,1716043845638,-500.0,0.00016712,2]
[327403307,1716043845648,-500.0,0.00016712,2]
[327403308,1716043845657,-500.0,0.00016712,2]
[327403309,1716043845666,-500.0,0.00016712,2]
[327403310,1716043845676,-500.0,0.00016712,2]
[327403312,1716043845685,-500.0,0.00016712,2]
[327403314,1716043845695,-500.0,0.00016712,2]
[327403317,1716043845704,-500.0,0.00016712,2]
[327403319,1716043845714,-500.0,0.00016712,2]
[327403321,1716043845723,-500.0,0.00016712,2]
[327403323,1716043845732,-500.0,0.00016712,2]
[327403325,1716043845741,-892.61,0.00016712,2]
[327403327,1716043845750,-500.0,0.00016712,2]
[327403329,1716043845760,-504.0000839,0.00016712,2]
[327403331,1716043845769,-500.0,0.00016712,2]
[327403333,1716043845778,-512.32680141,0.00016712,2]
[327403335,1716043845787,-500.0,0.00016712,2]
[327403337,1716043845796,-202.75,0.00016712,2]
[327403339,1716043845806,-500.0,0.00016712,2]
[327403341,1716043845815,-387.15,0.00016712,2]
[327403343,1716043845825,-500.0,0.00016712,2]
[327403345,1716043845834,-248.1,0.00016712,2]
[327403347,1716043845843,-500.0,0.00016712,2]
[327403349,1716043845852,-500.0,0.00016712,2]
[327403351,1716043845861,-599.21,0.00016712,2]
[327403353,1716043845872,-500.0,0.00016712,2]
[327403355,1716043845882,-644.5,0.00016712,2]
[327403357,1716043845891,-500.0,0.00016712,2]
[327403359,1716043845900,-500.0,0.00016712,2]
[327403361,1716043845909,-500.0,0.00016712,2]
[327403364,1716043845918,-478.33567427,0.00016712,2]
[327403367,1716043845928,-500.0,0.00016712,2]
[327403370,1716043845937,-500.0,0.00016712,2]
[327403373,1716043845946,-500.0,0.00016712,2]
[327403376,1716043845956,-543.46,0.00016712,2]
[327403379,1716043845965,-500.0,0.00016712,2]
[327403382,1716043845974,-500.0,0.00016712,2]
[327403385,1716043845983,-500.0,0.00016712,2]
[327403388,1716043845993,-500.0,0.00016712,2]
[327403390,1716043846003,-583.06,0.00016712,2]
[327403392,1716043846012,-500.0,0.00016712,2]
[327403393,1716043846021,-500.0,0.00016712,2]
[327403395,1716043846031,-500.0,0.00016712,2]
[327403397,1716043846040,-618.74,0.00016712,2]
[327403399,1716043846049,-500.0,0.00016712,2]
[327403402,1716043846059,-500.0,0.00016712,2]
[327403403,1716043846068,-500.0,0.00016712,2]
[327403406,1716043846078,-500.0,0.00016712,2]
[327403408,1716043846087,-500.0,0.00016712,2]
[327403409,1716043846097,-500.0,0.00016712,2]
[327403411,1716043846106,-981.11,0.00016712,2]
[327403413,1716043846116,-500.0,0.00016712,2]
[327403415,1716043846125,-500.0,0.00016712,2]
[327403417,1716043846134,-500.0,0.00016712,2]
[327403419,1716043846143,-500.0,0.00016712,2]
[327403421,1716043846152,-500.0,0.00016712,2]
[327403423,1716043846162,-633.02,0.00016712,2]
[327403425,1716043846171,-1076.96,0.00016712,2]
[327403427,1716043846180,-500.0,0.00016712,2]
[327403429,1716043846190,-680.35,0.00016712,2]
[327403431,1716043846199,-500.0,0.00016712,2]
[327403433,1716043846209,-156.95379844,0.00016712,2]
[327403435,1716043846223,-343.04620156,0.00016712,2]
[327403437,1716043846232,-500.0,0.00016712,2]
[327403439,1716043846241,-500.0,0.00016712,2]
[327403441,1716043846250,-1152.79,0.00016712,2]
[327403443,1716043846259,-500.0,0.00016712,2]
[327403445,1716043846268,-500.0,0.00016712,2]
[327403447,1716043846279,-500.0,0.00016712,2]
[327403449,1716043846292,-500.0,0.00016712,2]
[327403451,1716043846301,-500.0,0.00016712,2]
[327403453,1716043846311,-500.0,0.00016712,2]
[327403455,1716043846319,-637.6,0.00016712,2]
[327403457,1716043846330,-500.0,0.00016712,2]
[327403459,1716043846339,-500.0,0.00016712,2]
[327403461,1716043846348,-500.0,0.00016712,2]
[327403463,1716043846357,-500.0,0.00016712,2]
[327403466,1716043846367,-500.0,0.00016712,2]
[327403468,1716043846377,-500.0,0.00016712,2]
[327403471,1716043846387,-500.0,0.00016712,2]
[327403474,1716043846396,-674.11,0.00016712,2]
[327403477,1716043846406,-500.0,0.00016712,2]
[327403480,1716043846415,-500.0,0.00016712,2]
[327403482,1716043846424,-500.0,0.00016712,2]
[327403484,1716043846433,-500.0,0.00016712,2]
[327403486,1716043846442,-500.0,0.00016712,2]
[327403488,1716043846451,-500.0,0.00016712,2]
[327403490,1716043846461,-500.0,0.00016712,2]
[327403492,1716043846470,-500.0,0.00016712,2]
[327403494,1716043846479,-500.0,0.00016712,2]
[327403496,1716043846488,-500.0,0.00016712,2]
[327403498,1716043846498,-500.0,0.00016712,2]
[327403500,1716043846508,-500.0,0.00016712,2]
[327403502,1716043846517,-500.0,0.00016712,2]
[327403504,1716043846527,-830.76,0.00016712,2]
[327403506,1716043846535,-500.0,0.00016712,2]
[327403508,1716043846544,-500.0,0.00016712,2]
[327403510,1716043846553,-500.0,0.00016712,2]
[327403511,1716043846563,-500.0,0.00016712,2]
[327403513,1716043846572,-500.0,0.00016712,2]
[327403515,1716043846581,-544.42878694,0.00016712,2]
[327403517,1716043846590,-500.0,0.00016712,2]
[327403519,1716043846599,-500.0,0.00016712,2]
[327403521,1716043846609,-500.0,0.00016712,2]
[327403523,1716043846619,-936.88,0.00016712,2]
[327403525,1716043846629,-624.43,0.00016712,2]
[327403527,1716043846638,-500.0,0.00016712,2]
[327403529,1716043846647,-947.22,0.00016712,2]
[327403531,1716043846656,-500.0,0.00016712,2]
[327403533,1716043846665,-500.0,0.00016712,2]
[327403535,1716043846675,-500.0,0.00016712,2]
[327403537,1716043846684,-500.0,0.00016712,2]
[327403539,1716043846693,-538.11,0.00016712,2]
[327403541,1716043846702,-712.37,0.00016712,2]
[327403543,1716043846711,-2379.06,0.00016712,2]